[Event "Late-Titled-Tuesday-Blitz-August-29-2023"]
[Site "Chess.com"]
[Date "2023.08.29"]
[Round "5"]
[White "misterlamine"]
[Black "nassimzrikem"]
[Result "0-1"]
[WhiteElo "2354"]
[BlackElo "2159"]
[TimeControl "180+1"]
[EndTime "14:52:01 PDT"]
[Termination "nassimzrikem won by resignation"]

1. d4 {[%clk 0:03:00.9]} 1... Nf6 {[%clk 0:03:00.3]} 2. c4 {[%clk 0:03:00.5]}
2... e6 {[%clk 0:03:00.4]} 3. Nf3 {[%clk 0:03:00.7]} 3... d5 {[%clk 0:02:59.4]}
4. Nc3 {[%clk 0:03:00]} 4... c5 {[%clk 0:03:00.1]} 5. cxd5 {[%clk 0:02:59.4]}
5... Nxd5 {[%clk 0:03:00.8]} 6. e4 {[%clk 0:02:57.8]} 6... Nxc3 {[%clk
0:03:01.1]} 7. bxc3 {[%clk 0:02:58.7]} 7... cxd4 {[%clk 0:03:01.9]} 8. cxd4
{[%clk 0:02:59.1]} 8... Bb4+ {[%clk 0:03:02.6]} 9. Bd2 {[%clk 0:02:59.6]} 9...
Bxd2+ {[%clk 0:03:02.9]} 10. Qxd2 {[%clk 0:02:56.3]} 10... O-O {[%clk
0:03:02.7]} 11. Bc4 {[%clk 0:02:54.7]} 11... b6 {[%clk 0:03:02.5]} 12. O-O
{[%clk 0:02:54.6]} 12... Bb7 {[%clk 0:03:01.9]} 13. Rfe1 {[%clk 0:02:54.9]}
13... Nd7 {[%clk 0:03:02.3]} 14. Rad1 {[%clk 0:02:54.2]} 14... Rc8 {[%clk
0:03:00.3]} 15. Bb3 {[%clk 0:02:54]} 15... Nf6 {[%clk 0:02:59.8]} 16. Qf4 {[%clk
0:02:53.5]} 16... Qc7 {[%clk 0:02:55.4]} 17. Qh4 {[%clk 0:02:47.4]} 17... Rfd8
{[%clk 0:02:45.5]} 18. d5 {[%clk 0:02:27.1]} 18... exd5 {[%clk 0:02:42.9]} 19.
e5 {[%clk 0:02:26.6]} 19... Ne4 {[%clk 0:02:35.7]} 20. Nd4 {[%clk 0:02:26.1]}
20... Qxe5 {[%clk 0:02:27.1]} 21. f3 {[%clk 0:02:19.9]} 21... Qf6 {[%clk
0:02:24.8]} 22. Qg4 {[%clk 0:01:56.9]} 22... Nc3 {[%clk 0:02:03.5]} 23. Rd3
{[%clk 0:01:52.6]} 23... Ba6 {[%clk 0:01:54.5]} 24. Rde3 {[%clk 0:01:48.3]}
24... h5 {[%clk 0:01:54]} 25. Qxh5 {[%clk 0:01:04.7]} 25... Qxd4 {[%clk
0:01:52.9]} 26. Bc2 {[%clk 0:01:05.3]} 26... Ne2+ {[%clk 0:01:51]} 27. Rxe2
{[%clk 0:01:03.5]} 27... Rxc2 {[%clk 0:01:51.1]} 0-1

[Event "Late-Titled-Tuesday-Blitz-August-29-2023"]
[Site "Chess.com"]
[Date "2023.08.29"]
[Round "5"]
[White "rdarruda"]
[Black "XDPS"]
[Result "0-1"]
[WhiteElo "2575"]
[BlackElo "2875"]
[TimeControl "180+1"]
[EndTime "14:52:28 PDT"]
[Termination "XDPS won by resignation"]

1. d4 {[%clk 0:02:55.3]} 1... d5 {[%clk 0:03:00.1]} 2. Nf3 {[%clk 0:02:55.3]}
2... Nf6 {[%clk 0:03:00.1]} 3. c4 {[%clk 0:02:55.4]} 3... c6 {[%clk 0:02:59.5]}
4. Nc3 {[%clk 0:02:54.2]} 4... e6 {[%clk 0:03:00]} 5. e3 {[%clk 0:02:54.1]} 5...
Nbd7 {[%clk 0:03:00.1]} 6. Bd3 {[%clk 0:02:54.2]} 6... Be7 {[%clk 0:02:59.2]} 7.
O-O {[%clk 0:02:54.1]} 7... O-O {[%clk 0:02:59.8]} 8. e4 {[%clk 0:02:54.3]} 8...
dxe4 {[%clk 0:03:00.3]} 9. Nxe4 {[%clk 0:02:54.8]} 9... c5 {[%clk 0:03:01.1]}
10. dxc5 {[%clk 0:02:51]} 10... Nxc5 {[%clk 0:03:02]} 11. Nxc5 {[%clk
0:02:49.9]} 11... Bxc5 {[%clk 0:03:02.9]} 12. Bg5 {[%clk 0:02:49.5]} 12... b6
{[%clk 0:03:02.4]} 13. Qe2 {[%clk 0:02:49]} 13... Bb7 {[%clk 0:03:02.7]} 14.
Rad1 {[%clk 0:02:48]} 14... Qe7 {[%clk 0:03:03]} 15. Ne5 {[%clk 0:02:44.4]}
15... h6 {[%clk 0:03:03.3]} 16. Bh4 {[%clk 0:02:43.3]} 16... Rfd8 {[%clk
0:03:00.4]} 17. Ng4 {[%clk 0:02:32.3]} 17... Bd4 {[%clk 0:03:00.3]} 18. Rfe1
{[%clk 0:02:04.8]} 18... Kf8 {[%clk 0:02:58.9]} 19. Bb1 {[%clk 0:01:53.6]} 19...
g5 {[%clk 0:02:57]} 20. Bg3 {[%clk 0:01:51.5]} 20... Nxg4 {[%clk 0:02:57.2]} 21.
Qxg4 {[%clk 0:01:51.5]} 21... Bxb2 {[%clk 0:02:57.8]} 22. h4 {[%clk 0:01:38.9]}
22... Kg7 {[%clk 0:02:47.3]} 23. Be4 {[%clk 0:01:26.9]} 23... Bxe4 {[%clk
0:02:33]} 24. Qxe4 {[%clk 0:01:27.8]} 24... Bf6 {[%clk 0:02:27.7]} 25. hxg5
{[%clk 0:01:27]} 25... hxg5 {[%clk 0:02:28]} 26. Be5 {[%clk 0:01:24.1]} 26...
Rxd1 {[%clk 0:02:19.6]} 27. Rxd1 {[%clk 0:01:23]} 27... Rd8 {[%clk 0:02:18.8]}
28. Re1 {[%clk 0:01:16.9]} 28... Bxe5 {[%clk 0:02:17.2]} 29. Qxe5+ {[%clk
0:01:17.8]} 29... Qf6 {[%clk 0:02:17.7]} 30. Qc7 {[%clk 0:01:17.9]} 30... Rd2
{[%clk 0:02:15.7]} 31. Rf1 {[%clk 0:01:16.9]} 31... Rxa2 {[%clk 0:02:12]} 32. f4
{[%clk 0:01:16.7]} 32... Qd4+ {[%clk 0:01:46.5]} 33. Kh1 {[%clk 0:01:16]} 33...
Qe4 {[%clk 0:01:46.7]} 34. Rf3 {[%clk 0:01:16.1]} 34... Rxg2 {[%clk 0:01:22.2]}
35. Kxg2 {[%clk 0:01:13.5]} 35... g4 {[%clk 0:01:22]} 0-1

[Event "Late-Titled-Tuesday-Blitz-August-29-2023"]
[Site "Chess.com"]
[Date "2023.08.29"]
[Round "5"]
[White "Fleetw00dMac"]
[Black "kleinebeer98"]
[Result "0-1"]
[WhiteElo "2476"]
[BlackElo "2762"]
[TimeControl "180+1"]
[EndTime "14:52:41 PDT"]
[Termination "kleinebeer98 won by resignation"]

1. d4 {[%clk 0:03:00.9]} 1... Nf6 {[%clk 0:02:59.8]} 2. c4 {[%clk 0:03:00.8]}
2... a6 {[%clk 0:03:00.4]} 3. Nc3 {[%clk 0:02:59.8]} 3... b5 {[%clk 0:03:01.1]}
4. cxb5 {[%clk 0:02:53.5]} 4... axb5 {[%clk 0:03:02]} 5. Nxb5 {[%clk 0:02:49.7]}
5... e5 {[%clk 0:03:02.7]} 6. dxe5 {[%clk 0:02:00.5]} 6... Ne4 {[%clk 0:03:03]}
7. Nc3 {[%clk 0:02:00.7]} 7... Bb4 {[%clk 0:03:03.5]} 8. Qc2 {[%clk 0:01:47.2]}
8... d5 {[%clk 0:03:03]} 9. e3 {[%clk 0:01:35.6]} 9... Bf5 {[%clk 0:02:38.3]}
10. Bd3 {[%clk 0:01:35.1]} 10... Nd7 {[%clk 0:02:38.9]} 11. Kf1 {[%clk
0:01:21.1]} 11... Bxc3 {[%clk 0:02:35]} 12. bxc3 {[%clk 0:01:20.4]} 12... Ndc5
{[%clk 0:02:35.3]} 13. Bb5+ {[%clk 0:01:19.2]} 13... Kf8 {[%clk 0:02:30.2]} 14.
Qd1 {[%clk 0:01:07.7]} 14... Qh4 {[%clk 0:02:14]} 15. g3 {[%clk 0:00:59.1]}
15... Qe7 {[%clk 0:02:13.6]} 16. Bc6 {[%clk 0:00:25.6]} 16... Rd8 {[%clk
0:02:06.6]} 17. Qd4 {[%clk 0:00:18.4]} 17... h5 {[%clk 0:01:58.2]} 18. Ba3
{[%clk 0:00:14.9]} 18... h4 {[%clk 0:01:58.4]} 19. f3 {[%clk 0:00:13.4]} 19...
hxg3 {[%clk 0:01:54.4]} 20. fxe4 {[%clk 0:00:13.3]} 20... Bxe4 {[%clk
0:01:53.4]} 21. Bxc5 {[%clk 0:00:11.3]} 21... g2+ {[%clk 0:01:53.6]} 22. Kf2
{[%clk 0:00:09.9]} 22... gxh1=Q {[%clk 0:01:45.5]} 23. Bxe7+ {[%clk 0:00:09.3]}
23... Kxe7 {[%clk 0:01:46.4]} 24. Qc5+ {[%clk 0:00:09.1]} 24... Ke6 {[%clk
0:01:47.2]} 0-1

[Event "Late-Titled-Tuesday-Blitz-August-29-2023"]
[Site "Chess.com"]
[Date "2023.08.29"]
[Round "5"]
[White "HamedWafa4"]
[Black "ashookk"]
[Result "1-0"]
[WhiteElo "2561"]
[BlackElo "2353"]
[TimeControl "180+1"]
[EndTime "14:52:52 PDT"]
[Termination "HamedWafa4 won by resignation"]

1. e4 {[%clk 0:03:00.9]} 1... e6 {[%clk 0:02:52.7]} 2. d4 {[%clk 0:02:59.1]}
2... d5 {[%clk 0:02:53.6]} 3. e5 {[%clk 0:02:59.2]} 3... c5 {[%clk 0:02:53.5]}
4. c3 {[%clk 0:02:59.8]} 4... Nc6 {[%clk 0:02:53.4]} 5. Nf3 {[%clk 0:02:58.4]}
5... Qb6 {[%clk 0:02:53]} 6. Be2 {[%clk 0:02:58.7]} 6... cxd4 {[%clk 0:02:34.9]}
7. cxd4 {[%clk 0:02:59.6]} 7... Nh6 {[%clk 0:02:27.8]} 8. Bxh6 {[%clk
0:02:58.4]} 8... Qxb2 {[%clk 0:02:26.6]} 9. O-O {[%clk 0:02:56.1]} 9... Qxa1
{[%clk 0:02:21.4]} 10. Qb3 {[%clk 0:02:55]} 10... gxh6 {[%clk 0:01:57.4]} 11.
Nc3 {[%clk 0:02:53.9]} 11... Qxf1+ {[%clk 0:01:58.2]} 12. Bxf1 {[%clk
0:02:53.5]} 12... Be7 {[%clk 0:01:55.9]} 13. Nb5 {[%clk 0:02:53.1]} 13... O-O
{[%clk 0:01:56.4]} 14. Qe3 {[%clk 0:02:52.1]} 14... Kg7 {[%clk 0:01:54.9]} 15.
Nd6 {[%clk 0:02:49.9]} 15... f6 {[%clk 0:01:44.2]} 16. Bd3 {[%clk 0:02:48.9]}
16... fxe5 {[%clk 0:01:38.5]} 17. dxe5 {[%clk 0:02:47.9]} 17... Bd7 {[%clk
0:01:31]} 18. h4 {[%clk 0:02:44.8]} 18... Be8 {[%clk 0:01:10.2]} 19. Nxe8+
{[%clk 0:02:34.4]} 19... Raxe8 {[%clk 0:01:09.5]} 20. Bb1 {[%clk 0:02:34.7]}
20... Rf7 {[%clk 0:01:00.9]} 21. Nh2 {[%clk 0:02:26.8]} 21... Bxh4 {[%clk
0:00:55.4]} 22. g3 {[%clk 0:02:24.6]} 22... Bg5 {[%clk 0:00:55.8]} 23. f4 {[%clk
0:02:22.9]} 23... Bd8 {[%clk 0:00:56.3]} 24. Ng4 {[%clk 0:02:22.2]} 24... Bb6
{[%clk 0:00:55.3]} 25. Kg2 {[%clk 0:02:09.6]} 25... h5 {[%clk 0:00:49.7]} 26.
Qd3 {[%clk 0:02:05.3]} 26... hxg4 {[%clk 0:00:48.9]} 27. Qxh7+ {[%clk
0:02:02.5]} 27... Kf8 {[%clk 0:00:48.7]} 28. Qh6+ {[%clk 0:02:02.9]} 28... Ke7
{[%clk 0:00:47.9]} 29. Bg6 {[%clk 0:02:02.3]} 29... Ref8 {[%clk 0:00:39.2]} 30.
Qg5+ {[%clk 0:01:54.1]} 30... Kd7 {[%clk 0:00:38.7]} 31. Bxf7 {[%clk 0:01:54.2]}
31... Rxf7 {[%clk 0:00:39.6]} 32. Qxg4 {[%clk 0:01:54.7]} 32... Nd4 {[%clk
0:00:34]} 33. Qg8 {[%clk 0:01:52.1]} 33... Re7 {[%clk 0:00:29.7]} 34. Qb8 {[%clk
0:01:52.1]} 34... Kc6 {[%clk 0:00:19.7]} 35. Qd6+ {[%clk 0:01:50]} 1-0

[Event "Late-Titled-Tuesday-Blitz-August-29-2023"]
[Site "Chess.com"]
[Date "2023.08.29"]
[Round "5"]
[White "lefonghua"]
[Black "Oleksandr_Bortnyk"]
[Result "0-1"]
[WhiteElo "2644"]
[BlackElo "3034"]
[TimeControl "180+1"]
[EndTime "14:53:04 PDT"]
[Termination "Oleksandr_Bortnyk won by resignation"]

1. d4 {[%clk 0:03:00.9]} 1... d6 {[%clk 0:02:48]} 2. e4 {[%clk 0:02:58.9]} 2...
Nf6 {[%clk 0:02:40]} 3. f3 {[%clk 0:02:59.2]} 3... g6 {[%clk 0:02:34.4]} 4. c4
{[%clk 0:02:58.3]} 4... Bg7 {[%clk 0:02:33.2]} 5. Nc3 {[%clk 0:02:58.9]} 5...
Nfd7 {[%clk 0:02:16.3]} 6. Be3 {[%clk 0:02:51.3]} 6... c5 {[%clk 0:02:14]} 7.
Nge2 {[%clk 0:02:46.7]} 7... Nc6 {[%clk 0:02:10.9]} 8. d5 {[%clk 0:02:39.6]}
8... Nce5 {[%clk 0:02:09.4]} 9. Ng3 {[%clk 0:02:38.3]} 9... Qa5 {[%clk
0:02:02.5]} 10. Qd2 {[%clk 0:02:31.7]} 10... Nb6 {[%clk 0:01:54.6]} 11. Nb5
{[%clk 0:02:01]} 11... Qxd2+ {[%clk 0:01:53]} 12. Bxd2 {[%clk 0:02:01.9]} 12...
O-O {[%clk 0:01:51.4]} 13. Rc1 {[%clk 0:01:56.9]} 13... a6 {[%clk 0:01:40.6]}
14. Na3 {[%clk 0:01:56.5]} 14... f5 {[%clk 0:01:32]} 15. exf5 {[%clk 0:01:49]}
15... gxf5 {[%clk 0:01:31.3]} 16. Be2 {[%clk 0:01:46.8]} 16... e6 {[%clk
0:01:29]} 17. dxe6 {[%clk 0:01:41.9]} 17... Bxe6 {[%clk 0:01:29.9]} 18. O-O
{[%clk 0:01:38.5]} 18... Rae8 {[%clk 0:01:25]} 19. Nh5 {[%clk 0:01:33.9]} 19...
Bh8 {[%clk 0:01:18]} 20. Nf4 {[%clk 0:01:31.4]} 20... Bf7 {[%clk 0:01:13.6]} 21.
Rfe1 {[%clk 0:01:27.5]} 21... Nc6 {[%clk 0:01:10.2]} 22. Bc3 {[%clk 0:01:18.1]}
22... Nd4 {[%clk 0:01:10.2]} 23. b3 {[%clk 0:01:09.3]} 23... Be5 {[%clk
0:00:59.4]} 24. Bd2 {[%clk 0:00:27.9]} 24... Bxf4 {[%clk 0:00:57.1]} 0-1

[Event "Late-Titled-Tuesday-Blitz-August-29-2023"]
[Site "Chess.com"]
[Date "2023.08.29"]
[Round "5"]
[White "Walter_White_Poland"]
[Black "Mili_Brizzi"]
[Result "1-0"]
[WhiteElo "2355"]
[BlackElo "2019"]
[TimeControl "180+1"]
[EndTime "14:53:05 PDT"]
[Termination "Walter_White_Poland won by resignation"]

1. e4 {[%clk 0:02:55.1]} 1... c6 {[%clk 0:02:59.3]} 2. d4 {[%clk 0:02:54.6]}
2... d5 {[%clk 0:02:59.5]} 3. f3 {[%clk 0:02:55]} 3... dxe4 {[%clk 0:02:59.3]}
4. fxe4 {[%clk 0:02:55.4]} 4... e5 {[%clk 0:02:59.5]} 5. Nf3 {[%clk 0:02:55.1]}
5... Bg4 {[%clk 0:02:59.7]} 6. c3 {[%clk 0:02:54.6]} 6... Nf6 {[%clk 0:02:56.4]}
7. Bd3 {[%clk 0:02:36.2]} 7... Nbd7 {[%clk 0:02:53.4]} 8. O-O {[%clk 0:02:34.4]}
8... Bd6 {[%clk 0:02:53.3]} 9. Bg5 {[%clk 0:02:24.4]} 9... Qc7 {[%clk
0:02:52.8]} 10. Qc2 {[%clk 0:02:14.3]} 10... O-O {[%clk 0:02:40.7]} 11. Nbd2
{[%clk 0:02:11.9]} 11... b5 {[%clk 0:02:35.7]} 12. a4 {[%clk 0:02:07.4]} 12...
a6 {[%clk 0:02:35.2]} 13. Rae1 {[%clk 0:02:06.5]} 13... Rfe8 {[%clk 0:02:22.8]}
14. Nh4 {[%clk 0:02:01.5]} 14... h6 {[%clk 0:02:11.2]} 15. Bxf6 {[%clk
0:01:52.3]} 15... Nxf6 {[%clk 0:02:10.8]} 16. h3 {[%clk 0:01:36.9]} 16... Bh5
{[%clk 0:02:00.2]} 17. g4 {[%clk 0:01:33.6]} 17... Bg6 {[%clk 0:01:59.7]} 18.
Nf5 {[%clk 0:01:29]} 18... Bxf5 {[%clk 0:01:39.9]} 19. Rxf5 {[%clk 0:01:17.3]}
19... exd4 {[%clk 0:01:28]} 20. cxd4 {[%clk 0:00:52.8]} 20... Bh2+ {[%clk
0:01:27.3]} 21. Kh1 {[%clk 0:00:51.8]} 21... Qg3 {[%clk 0:01:20.4]} 22. Nf3
{[%clk 0:00:46.4]} 22... Qxh3 {[%clk 0:01:03.2]} 23. Qxh2 {[%clk 0:00:35.1]}
23... Qxg4 {[%clk 0:01:02.2]} 24. Rg1 {[%clk 0:00:33]} 1-0

[Event "Late-Titled-Tuesday-Blitz-August-29-2023"]
[Site "Chess.com"]
[Date "2023.08.29"]
[Round "5"]
[White "S-Fazulyanov"]
[Black "Training_Day"]
[Result "1/2-1/2"]
[WhiteElo "2627"]
[BlackElo "2490"]
[TimeControl "180+1"]
[EndTime "14:53:09 PDT"]
[Termination "Game drawn by repetition"]

1. e4 {[%clk 0:03:00]} 1... e5 {[%clk 0:02:53.5]} 2. Nf3 {[%clk 0:02:59.5]} 2...
Nc6 {[%clk 0:02:52.7]} 3. Nc3 {[%clk 0:02:59]} 3... Nf6 {[%clk 0:02:46.3]} 4. a4
{[%clk 0:02:58.1]} 4... Bb4 {[%clk 0:02:42.2]} 5. Bd3 {[%clk 0:02:57.1]} 5...
O-O {[%clk 0:02:40.6]} 6. O-O {[%clk 0:02:56.6]} 6... Re8 {[%clk 0:02:40.2]} 7.
Nd5 {[%clk 0:02:53.3]} 7... Bf8 {[%clk 0:02:37]} 8. c3 {[%clk 0:02:43.1]} 8...
d6 {[%clk 0:02:30.8]} 9. Bc2 {[%clk 0:02:38.8]} 9... Be6 {[%clk 0:02:29.1]} 10.
Nxf6+ {[%clk 0:02:31.1]} 10... Qxf6 {[%clk 0:02:30]} 11. d4 {[%clk 0:02:31]}
11... Bg4 {[%clk 0:02:28.5]} 12. d5 {[%clk 0:02:26.9]} 12... Ne7 {[%clk
0:02:23.4]} 13. c4 {[%clk 0:02:05.8]} 13... Ng6 {[%clk 0:02:20.4]} 14. Ra3
{[%clk 0:02:05.8]} 14... Nh4 {[%clk 0:02:14.2]} 15. Kh1 {[%clk 0:02:02.4]} 15...
Nxf3 {[%clk 0:01:36.8]} 16. gxf3 {[%clk 0:01:59.3]} 16... Bh5 {[%clk 0:01:25.2]}
17. Rg1 {[%clk 0:01:52.1]} 17... h6 {[%clk 0:01:24.6]} 18. b4 {[%clk 0:01:25.6]}
18... Kh8 {[%clk 0:01:14.3]} 19. Rg3 {[%clk 0:01:20.4]} 19... Be7 {[%clk
0:01:08.5]} 20. Qd3 {[%clk 0:01:16.9]} 20... Qh4 {[%clk 0:01:04.7]} 21. Kg2
{[%clk 0:01:08.1]} 21... Qf6 {[%clk 0:00:42.5]} 22. Rh3 {[%clk 0:00:50.2]} 22...
Qg6+ {[%clk 0:00:39.8]} 23. Rg3 {[%clk 0:00:48.9]} 23... Qf6 {[%clk 0:00:38.2]}
24. Rh3 {[%clk 0:00:47.2]} 24... Qg6+ {[%clk 0:00:38.1]} 25. Rg3 {[%clk
0:00:46.8]} 25... Qf6 {[%clk 0:00:38.4]} 1/2-1/2

[Event "Late-Titled-Tuesday-Blitz-August-29-2023"]
[Site "Chess.com"]
[Date "2023.08.29"]
[Round "5"]
[White "Berardino"]
[Black "frederiksvane"]
[Result "0-1"]
[WhiteElo "2680"]
[BlackElo "2941"]
[TimeControl "180+1"]
[EndTime "14:53:14 PDT"]
[Termination "frederiksvane won by resignation"]

1. d4 {[%clk 0:02:57.9]} 1... Nf6 {[%clk 0:02:59.4]} 2. c4 {[%clk 0:02:57.6]}
2... g6 {[%clk 0:02:59.8]} 3. Nc3 {[%clk 0:02:56.1]} 3... Bg7 {[%clk 0:03:00.3]}
4. e4 {[%clk 0:02:55.9]} 4... d6 {[%clk 0:03:00.8]} 5. f3 {[%clk 0:02:56.4]}
5... O-O {[%clk 0:03:00]} 6. Bg5 {[%clk 0:02:57.1]} 6... Nbd7 {[%clk 0:02:56.3]}
7. Qd2 {[%clk 0:02:41.6]} 7... a6 {[%clk 0:02:55.1]} 8. Nh3 {[%clk 0:02:28.9]}
8... c6 {[%clk 0:02:42.5]} 9. Nf2 {[%clk 0:02:24]} 9... b5 {[%clk 0:02:42.2]}
10. a3 {[%clk 0:02:19.4]} 10... Bb7 {[%clk 0:02:42.3]} 11. Bd3 {[%clk
0:02:15.6]} 11... e5 {[%clk 0:02:42.3]} 12. d5 {[%clk 0:02:12.1]} 12... Nc5
{[%clk 0:02:34.7]} 13. Rd1 {[%clk 0:01:52]} 13... cxd5 {[%clk 0:02:34.8]} 14.
Nxd5 {[%clk 0:01:43.2]} 14... Bxd5 {[%clk 0:02:26.6]} 15. cxd5 {[%clk 0:01:43]}
15... Nb3 {[%clk 0:02:25.5]} 16. Qe3 {[%clk 0:01:36.8]} 16... Qa5+ {[%clk
0:02:23.6]} 17. Kf1 {[%clk 0:01:32.9]} 17... Nd4 {[%clk 0:02:21.5]} 18. g3
{[%clk 0:01:32.2]} 18... b4 {[%clk 0:02:20.7]} 19. Kg2 {[%clk 0:01:15.4]} 19...
bxa3 {[%clk 0:02:20.5]} 20. Ra1 {[%clk 0:01:14]} 20... a2 {[%clk 0:02:20.6]} 21.
b4 {[%clk 0:00:38.4]} 21... Qxb4 {[%clk 0:02:19.6]} 22. Rxa2 {[%clk 0:00:38.7]}
22... a5 {[%clk 0:02:19.9]} 23. Rb1 {[%clk 0:00:37.7]} 23... Qc5 {[%clk
0:02:18.6]} 24. Rc1 {[%clk 0:00:35.7]} 24... Qb6 {[%clk 0:02:10.9]} 25. Rb1
{[%clk 0:00:35.9]} 25... Qc7 {[%clk 0:02:08.5]} 26. Rc1 {[%clk 0:00:35.8]} 26...
Qd7 {[%clk 0:02:08.4]} 27. Rca1 {[%clk 0:00:34.2]} 27... a4 {[%clk 0:02:08.7]}
28. Nd1 {[%clk 0:00:31.4]} 28... Rfc8 {[%clk 0:02:00.5]} 29. Ra3 {[%clk
0:00:24.9]} 29... Nc2 {[%clk 0:01:51]} 30. Bxc2 {[%clk 0:00:24.8]} 30... Rxc2+
{[%clk 0:01:51.9]} 31. Nf2 {[%clk 0:00:24.7]} 31... h6 {[%clk 0:01:46.6]} 32.
Bxf6 {[%clk 0:00:21.6]} 32... Bxf6 {[%clk 0:01:46.3]} 33. Qxh6 {[%clk
0:00:22.2]} 33... Bd8 {[%clk 0:01:43.3]} 34. Qe3 {[%clk 0:00:19.2]} 34... Rb8
{[%clk 0:01:40.5]} 35. Qd3 {[%clk 0:00:15.6]} 35... Rbb2 {[%clk 0:01:39.5]} 0-1

[Event "Late-Titled-Tuesday-Blitz-August-29-2023"]
[Site "Chess.com"]
[Date "2023.08.29"]
[Round "5"]
[White "psychokiller48"]
[Black "WindWhistler11"]
[Result "0-1"]
[WhiteElo "2670"]
[BlackElo "2492"]
[TimeControl "180+1"]
[EndTime "14:53:28 PDT"]
[Termination "WindWhistler11 won by resignation"]

1. e4 {[%clk 0:02:59.7]} 1... e6 {[%clk 0:01:29.9]} 2. d4 {[%clk 0:02:58.4]}
2... d5 {[%clk 0:01:30.5]} 3. Nc3 {[%clk 0:02:56.5]} 3... Bb4 {[%clk 0:01:30]}
4. Ne2 {[%clk 0:02:53.9]} 4... Ne7 {[%clk 0:01:29.2]} 5. a3 {[%clk 0:02:53.3]}
5... Ba5 {[%clk 0:01:28.1]} 6. Bd2 {[%clk 0:02:48.4]} 6... Bb6 {[%clk
0:01:28.1]} 7. Bg5 {[%clk 0:02:27.8]} 7... f6 {[%clk 0:01:22.8]} 8. Be3 {[%clk
0:02:27]} 8... Nbc6 {[%clk 0:01:22.9]} 9. f3 {[%clk 0:02:20.9]} 9... e5 {[%clk
0:01:10.7]} 10. Nxd5 {[%clk 0:02:11]} 10... Nxd5 {[%clk 0:01:10.2]} 11. exd5
{[%clk 0:02:10.7]} 11... Qxd5 {[%clk 0:01:09.8]} 12. Nc3 {[%clk 0:02:08.2]}
12... Qf7 {[%clk 0:01:09.4]} 13. Bb5 {[%clk 0:02:06.8]} 13... Be6 {[%clk
0:00:57.3]} 14. d5 {[%clk 0:01:37.4]} 14... O-O-O {[%clk 0:00:49.3]} 15. Bxb6
{[%clk 0:01:28.3]} 15... axb6 {[%clk 0:00:40]} 16. Bxc6 {[%clk 0:01:20.5]} 16...
bxc6 {[%clk 0:00:36.4]} 17. Qd3 {[%clk 0:01:20.9]} 17... Bxd5 {[%clk 0:00:29.3]}
18. Qa6+ {[%clk 0:01:20.3]} 18... Kb8 {[%clk 0:00:29.5]} 19. a4 {[%clk
0:01:08.4]} 19... Bc4 {[%clk 0:00:22.9]} 20. Nb5 {[%clk 0:01:08.3]} 20... cxb5
{[%clk 0:00:20.5]} 21. axb5 {[%clk 0:01:08.3]} 21... Qd5 {[%clk 0:00:21.1]} 22.
Kf2 {[%clk 0:00:56.8]} 22... Qd2+ {[%clk 0:00:19.1]} 23. Kg3 {[%clk 0:00:51.9]}
23... Qf4+ {[%clk 0:00:19.1]} 24. Kh3 {[%clk 0:00:48.7]} 24... Be6+ {[%clk
0:00:18.7]} 0-1

[Event "Late-Titled-Tuesday-Blitz-August-29-2023"]
[Site "Chess.com"]
[Date "2023.08.29"]
[Round "5"]
[White "KaydenTroffChess"]
[Black "sergoy"]
[Result "0-1"]
[WhiteElo "2798"]
[BlackElo "2973"]
[TimeControl "180+1"]
[EndTime "14:53:29 PDT"]
[Termination "sergoy won by checkmate"]

1. d4 {[%clk 0:03:00.9]} 1... Nf6 {[%clk 0:02:59.8]} 2. Nf3 {[%clk 0:03:01.1]}
2... d5 {[%clk 0:02:57.5]} 3. Bf4 {[%clk 0:03:01.3]} 3... c5 {[%clk 0:02:57.9]}
4. e3 {[%clk 0:03:01.5]} 4... Nc6 {[%clk 0:02:58.5]} 5. Nc3 {[%clk 0:03:00.7]}
5... Bg4 {[%clk 0:02:55]} 6. dxc5 {[%clk 0:02:58.4]} 6... e6 {[%clk 0:02:54.4]}
7. Na4 {[%clk 0:02:56.5]} 7... Be7 {[%clk 0:02:34.7]} 8. Be2 {[%clk 0:02:29.1]}
8... Ne4 {[%clk 0:02:29.4]} 9. h3 {[%clk 0:02:21.6]} 9... Bh5 {[%clk 0:02:28.5]}
10. c3 {[%clk 0:02:14.5]} 10... Nxc5 {[%clk 0:02:24.3]} 11. Nxc5 {[%clk
0:02:13.2]} 11... Bxc5 {[%clk 0:02:25.2]} 12. O-O {[%clk 0:02:11.3]} 12... O-O
{[%clk 0:02:25.1]} 13. Rc1 {[%clk 0:01:56.3]} 13... Qb6 {[%clk 0:02:15.8]} 14.
Ne5 {[%clk 0:01:44.2]} 14... Nxe5 {[%clk 0:01:58.3]} 15. Bxh5 {[%clk 0:01:35.1]}
15... Ng6 {[%clk 0:01:56.5]} 16. Bxg6 {[%clk 0:01:13.6]} 16... hxg6 {[%clk
0:01:57.4]} 17. Qe2 {[%clk 0:01:07.8]} 17... Rac8 {[%clk 0:01:55.3]} 18. c4
{[%clk 0:01:05.5]} 18... d4 {[%clk 0:01:53.5]} 19. exd4 {[%clk 0:01:05.2]} 19...
Bxd4 {[%clk 0:01:54.4]} 20. b3 {[%clk 0:01:05.5]} 20... Rfd8 {[%clk 0:01:51.7]}
21. Rfd1 {[%clk 0:00:46.1]} 21... Rd7 {[%clk 0:01:48.5]} 22. Be3 {[%clk
0:00:30.1]} 22... Rcd8 {[%clk 0:01:48.7]} 23. Bxd4 {[%clk 0:00:27]} 23... Rxd4
{[%clk 0:01:49.6]} 24. Rxd4 {[%clk 0:00:23.6]} 24... Qxd4 {[%clk 0:01:50.5]} 25.
g3 {[%clk 0:00:19.8]} 25... g5 {[%clk 0:01:49.6]} 26. Kh2 {[%clk 0:00:18.7]}
26... a5 {[%clk 0:01:47.8]} 27. Rc2 {[%clk 0:00:19.1]} 27... g6 {[%clk
0:01:42.1]} 28. Kg2 {[%clk 0:00:19.5]} 28... Kg7 {[%clk 0:01:40]} 29. Qe3 {[%clk
0:00:19.3]} 29... Qxe3 {[%clk 0:01:38]} 30. fxe3 {[%clk 0:00:20.2]} 30... Kf6
{[%clk 0:01:38.7]} 31. Kf3 {[%clk 0:00:20.4]} 31... Ke5 {[%clk 0:01:39.1]} 32.
Ke2 {[%clk 0:00:10.5]} 32... Rh8 {[%clk 0:01:30.7]} 33. c5 {[%clk 0:00:08.7]}
33... Rxh3 {[%clk 0:01:30]} 34. Kf3 {[%clk 0:00:09.3]} 34... f5 {[%clk 0:01:26]}
35. c6 {[%clk 0:00:09.5]} 35... bxc6 {[%clk 0:01:24.6]} 36. Rxc6 {[%clk
0:00:10.4]} 36... Rh2 {[%clk 0:01:24.1]} 37. Rc5+ {[%clk 0:00:10.7]} 37... Kf6
{[%clk 0:01:24.4]} 38. Rxa5 {[%clk 0:00:11.6]} 38... g4+ {[%clk 0:01:24.5]} 39.
Kf4 {[%clk 0:00:09.5]} 39... g5# {[%clk 0:01:25.4]} 0-1